fUST/lending_fUST_20260409
["ID","MTS","AMOUNT","RATE_DAILY","PERIOD"]
[420161783,1775740238577,-1000.0,0.00012973,2]
[420161784,1775740238586,-300.0,0.00012996,2]
[420161785,1775740238595,-497.4821596,0.00012997,2]
[420161786,1775740238606,-1000.0,0.00012997,2]
[420161787,1775740238615,-157.1107383,0.00012997,2]
[420161788,1775740238625,-500.0,0.00012999,2]
[420161789,1775740238635,-500.0,0.00012999,2]
[420161790,1775740238644,-500.0,0.00012999,2]
[420161791,1775740238654,-500.0,0.00012999,2]
[420161792,1775740238663,-500.0,0.00012999,2]
[420161793,1775740238673,-500.0,0.00012999,2]
[420161794,1775740238683,-500.0,0.00012999,2]
[420161795,1775740238692,-500.0,0.00012999,2]
[420161796,1775740238702,-500.0,0.00012999,2]
[420161797,1775740238712,-500.0,0.00012999,2]
[420161798,1775740238722,-496.99916704,0.00012999,2]
[420161799,1775740238732,-500.0,0.00012999,2]
[420161800,1775740238741,-250.0,0.00012999,2]
[420161801,1775740238750,-1000.0,0.00012999,2]
[420161802,1775740238761,-855.45907703,0.00012999,2]
[420161803,1775740238771,-266.13756836,0.00012999,2]
[420161804,1775740238781,-645.66682474,0.00012999,2]
[420161805,1775740238791,-645.66682474,0.00012999,2]
[420161806,1775740238801,-645.66682474,0.00012999,2]
[420161807,1775740238811,-645.66682474,0.00012999,2]
[420161808,1775740238820,-645.66682474,0.00012999,2]
[420161809,1775740238831,-645.66682474,0.00012999,2]
[420161810,1775740238840,-645.66682474,0.00012999,2]
[420161811,1775740238850,-645.66682474,0.00012999,2]
[420161812,1775740238859,-645.66682474,0.00012999,2]
[420161813,1775740238870,-645.66682474,0.00012999,2]
[420161814,1775740238880,-645.66682474,0.00012999,2]
[420161815,1775740238890,-645.66682474,0.00012999,2]
[420161816,1775740238899,-645.66682474,0.00012999,2]
[420161817,1775740238908,-645.66682474,0.00012999,2]
[420161818,1775740238917,-645.66682474,0.00012999,2]
[420161819,1775740238926,-645.66682474,0.00012999,2]
[420161820,1775740238936,-645.66682474,0.00012999,2]
[420161821,1775740238946,-645.66682474,0.00012999,2]
[420161822,1775740238956,-645.66682474,0.00012999,2]
[420161823,1775740238966,-645.66682474,0.00012999,2]
[420161824,1775740238976,-677.95016598,0.00012999,2]
[420161825,1775740238986,-677.95016598,0.00012999,2]
[420161826,1775740238996,-677.95016598,0.00012999,2]
[420161827,1775740239006,-677.95016598,0.00012999,2]
[420161828,1775740239015,-677.95016598,0.00012999,2]
[420161829,1775740239025,-677.95016598,0.00012999,2]
[420161830,1775740239035,-677.95016598,0.00012999,2]
[420161831,1775740239045,-677.95016598,0.00012999,2]
[420161832,1775740239056,-677.95016598,0.00012999,2]
[420161833,1775740239065,-677.95016598,0.00012999,2]
[420161834,1775740239075,-29582.75056141,0.00013,2]
[420161835,1775740239091,-18694.05634671,0.00013,2]
[420161836,1775740239102,-3453.977427,0.00013,2]
[420161837,1775740241061,-11528.40164134,0.00013,2]
[420161849,1775740243476,-695.7,0.00013,2]
[420161854,1775740246220,-12701.27529038,0.00013,2]
[420161855,1775740246232,-14492.25681122,0.00013,2]
[420161874,1775740802664,151.36,9e-05,2]
[420161875,1775740803005,151.36,9e-05,2]
[420161876,1775740818501,151.35,9e-05,2]
[420161877,1775740864791,9309.91179267,0.0001,30]
[420161878,1775740864814,10690.08820733,0.0001,30]
[420161879,1775740893377,9309.91179267,0.0001,30]
[420161880,1775740893399,20000.0,0.0001,30]
[420161881,1775740893426,1000.0,0.0001,30]
[420161882,1775740893451,1000.0,0.0001,30]
[420161883,1775740893475,1000.0,0.0001,30]
[420161884,1775740893501,1000.0,0.0001,30]
[420161885,1775740893526,1000.0,0.0001,30]
[420161887,1775741059671,-151.0,0.0001,30]
[420161888,1775741060884,-151.0,0.0001,30]
[420161889,1775741061730,-151.0,0.0001,30]
[420161890,1775741063043,-151.0,0.0001,30]
[420161891,1775741063828,-151.0,0.0001,30]
[420161892,1775741065213,-151.0,0.0001,30]
[420161893,1775741066235,-151.0,0.0001,30]
[420161894,1775741067497,-151.0,0.0001,30]
[420161895,1775741068423,-151.0,0.0001,30]
[420161896,1775741069382,-151.0,0.0001,30]
[420161906,1775741146903,-151.0,0.0001,30]
[420161907,1775741148637,-151.0,0.0001,30]
[420161908,1775741149503,-151.0,0.0001,30]
[420161909,1775741150547,-151.0,0.0001,30]
[420161910,1775741151678,-151.0,0.0001,30]
[420161913,1775741207690,23427.40815227,9e-05,2]
[420162068,1775741438747,-151.36,9.1e-05,2]
[420162069,1775741438757,-151.36,9.1e-05,2]
[420162070,1775741438767,-151.36,9.1e-05,2]
[420162071,1775741438778,-1187.61884886,9.125e-05,2]
[420162072,1775741438788,-151.36,9.2e-05,2]
[420162073,1775741438798,-151.36,9.2e-05,2]
[420162074,1775741438808,-151.36,9.2e-05,2]
[420162075,1775741438818,-351.89308875,9.2e-05,2]
[420162076,1775741438827,-151.36,9.3e-05,2]
[420162077,1775741438837,-151.36,9.3e-05,2]
[420162078,1775741438847,-151.36,9.3e-05,2]
[420162079,1775741438856,-151.36,9.3e-05,2]
[420162080,1775741438866,-300.0,9.399e-05,2]
[420162081,1775741438876,-151.36,9.4e-05,2]
[420162082,1775741438886,-151.36,9.4e-05,2]
[420162083,1775741438895,-151.36,9.4e-05,2]
[420162084,1775741438904,-151.36,9.4e-05,2]
[420162085,1775741438914,-151.36,9.5e-05,2]
[420162086,1775741438924,-151.36,9.5e-05,2]
[420162087,1775741438933,-151.36,9.5e-05,2]
[420162088,1775741438942,-151.36,9.6e-05,2]
[420162089,1775741438952,-151.36,9.6e-05,2]
[420162090,1775741438962,-151.36,9.6e-05,2]
[420162091,1775741438972,-151.36,9.6e-05,2]
[420162092,1775741438981,-151.36,9.7e-05,2]
[420162093,1775741438990,-151.36,9.7e-05,2]
[420162094,1775741439000,-151.36,9.7e-05,2]
[420162095,1775741439010,-151.36,9.8e-05,2]
[420162096,1775741439019,-151.36,9.8e-05,2]
[420162097,1775741439028,-151.36,9.8e-05,2]
[420162098,1775741439038,-151.36,9.8e-05,2]
[420162099,1775741439048,-151.36,9.9e-05,2]
[420162101,1775741439058,-205.320004,9.943e-05,2]
[420162103,1775741439067,-194.99977779,0.0001,2]
[420162104,1775741439077,-420.0,0.00010339,2]
[420162105,1775741439087,-1401.39024165,0.00011125,2]
[420162106,1775741439096,-2984.14047493,0.00011251,2]
[420162107,1775741439106,-587.0,0.00011373,2]
[420162108,1775741439115,-194.99977779,0.00011738,7]
[420162109,1775741439125,-205.320004,0.00012036,2]
[420162110,1775741439135,-5000.0,0.0001235,2]
[420162111,1775741439144,-5000.0,0.0001235,2]
[420162112,1775741439154,-5000.0,0.0001235,2]
[420162113,1775741439164,-5000.0,0.0001235,2]
[420162114,1775741439173,-5000.0,0.0001235,2]
[420162115,1775741439183,-151.0,0.00012467,2]
[420162116,1775741439193,-523.0,0.0001251,2]
[420162117,1775741439203,-335.33591426,0.00012603,2]
[420162118,1775741439212,-2027.0533749,0.0001269,2]
[420162119,1775741439222,-500.0,0.0001269,2]
[420162120,1775741439232,-335.33591426,0.00012855,7]
[420162121,1775741439242,-717.61304331,0.00012999,2]
[420162122,1775741439251,-937.74110044,0.00012999,2]
[420162123,1775741439261,-172.25294549,0.00012999,2]
[420162124,1775741439270,-151.0,0.00012999,2]
[420162125,1775741439280,-151.0,0.00012999,2]
[420162126,1775741439290,-3421.83630813,0.00012999,2]
[420162127,1775741439300,-451.95585225,0.00012999,2]
[420162128,1775741439310,-356492.85731934,0.00013,2]
[420162129,1775741439320,-4119.9629994,0.00013,2]
[420162130,1775741439329,-664.10379,0.00013,2]
[420162131,1775741439338,-1000.0,0.00013023,2]
[420162132,1775741439348,-594.08743691,0.00013023,7]
[420162133,1775741439357,-1615.16163445,0.00013125,2]
[420162134,1775741439366,-331.31206533,0.00013233,14]
[420162135,1775741439376,-600.0,0.00013259,2]
[420162136,1775741439386,-1000.0,0.00013259,2]
[420162137,1775741439396,-1000.0,0.00013274,2]
[420162138,1775741439406,-1000.0,0.00013283,2]
[420162139,1775741439416,-194.99977779,0.00013477,7]
[420162140,1775741439426,-1000.0,0.00013521,2]
[420162141,1775741439436,-166.0,0.00013539,2]
[420162142,1775741439445,-947.0,0.00013539,2]
[420162143,1775741439455,-758.32474028,0.00013539,2]
[420162144,1775741439465,-166.0,0.00013539,2]
[420162145,1775741439474,-272.61022012,0.00013539,2]
[420162146,1775741439483,-947.0,0.00013539,2]
[420162147,1775741439494,-725.46359589,0.00013539,2]
[420162148,1775741439503,-1000.0,0.00013543,2]
[420162149,1775741439513,-2010.83204225,0.00013617,7]
[420162150,1775741439523,-1000.0,0.00013633,2]
[420162151,1775741439532,-1000.0,0.0001369,2]
[420162152,1775741439542,-1000.0,0.00013698,2]
[420162153,1775741439551,-500.0,0.00013698,2]
[420162154,1775741439561,-500.0,0.00013698,2]
[420162155,1775741439571,-500.0,0.00013698,2]
[420162156,1775741439580,-500.0,0.00013698,2]
[420162157,1775741439590,-500.0,0.00013698,2]
[420162158,1775741439599,-500.0,0.00013698,2]
[420162159,1775741439610,-500.0,0.00013698,2]
[420162160,1775741439619,-500.0,0.00013698,2]
[420162161,1775741439629,-267.14571226,0.00013698,2]
[420162162,1775741439639,-608.63055053,0.00013698,2]
[420162163,1775741439648,-500.0,0.00013698,2]
[420162164,1775741439657,-500.0,0.00013698,2]
[420162165,1775741439667,-500.0,0.00013698,2]
[420162166,1775741439677,-489.22379104,0.00013698,2]
[420162167,1775741439687,-1000.0,0.00013699,2]
[420162168,1775741439696,-319.768154,0.00013699,2]
[420162169,1775741439706,-1000.0,0.00013699,2]
[420162170,1775741439715,-500.0,0.00013699,2]
[420162171,1775741439725,-1000.0,0.00013699,2]
[420162172,1775741439734,-1000.0,0.00013699,2]
[420162173,1775741439744,-1500.0,0.00013699,2]
[420162174,1775741439754,-1500.0,0.00013699,2]
[420162175,1775741439764,-1500.0,0.00013699,2]
[420162176,1775741439774,-1500.0,0.00013699,2]
[420162177,1775741439783,-1500.0,0.00013699,2]
[420162178,1775741439793,-1500.0,0.00013699,2]
[420162179,1775741439802,-2269.261095,0.00013699,2]
[420162180,1775741439812,-1500.0,0.00013699,2]
[420162181,1775741439822,-1500.0,0.00013699,2]
[420162182,1775741439832,-1500.0,0.00013699,2]
[420162183,1775741439841,-1503.488194,0.00013699,2]
[420162184,1775741439850,-1000.0,0.00013699,2]
[420162185,1775741439860,-631.27,0.00013699,2]
[420162186,1775741439870,-631.27,0.00013699,2]
[420162187,1775741439880,-631.27,0.00013699,2]
[420162188,1775741439890,-631.27,0.00013699,2]
[420162189,1775741439899,-631.27,0.00013699,2]
[420162190,1775741439909,-631.27,0.00013699,2]
[420162191,1775741439919,-631.27,0.00013699,2]
[420162192,1775741439929,-631.27,0.00013699,2]
[420162193,1775741439938,-631.27,0.00013699,2]
[420162194,1775741439948,-967.45,0.00013699,2]
[420162195,1775741439958,-500.0,0.0001372,2]
[420162196,1775741439967,-500.0,0.0001372,2]
[420162197,1775741439977,-500.0,0.00013764,2]
[420162198,1775741439986,-1000.0,0.000138,2]
[420162199,1775741439996,-754.11298752,0.00013814,2]
[420162200,1775741440005,-806.78927607,0.00013814,2]
[420162201,1775741440015,-3223.92994716,0.00013814,2]
[420162203,1775741440025,-200.0,0.000139,2]
[420162205,1775741440034,-202.22794586,0.000139,2]
[420162207,1775741440044,-1000.0,0.00013907,2]
[420162209,1775741440054,-500.0,0.00013916,2]
[420162211,1775741440064,-1000.0,0.00014031,2]
[420162213,1775741440073,-594.08743691,0.00014031,7]
[420162215,1775741440083,-1000.0,0.00014068,2]
[420162217,1775741440092,-1000.0,0.00014069,2]
[420162219,1775741440102,-1000.0,0.00014091,2]
[420162221,1775741440111,-1000.0,0.0001411,2]
[420162222,1775741440121,-2206.4496481,0.00014228,7]
[420162223,1775741440130,-1000.0,0.0001423,2]
[420162224,1775741440139,-1000.0,0.0001424,2]
[420162225,1775741440148,-1000.0,0.00014245,2]
[420162226,1775741440158,-1000.0,0.00014245,2]
[420162227,1775741440168,-1000.0,0.00014255,2]
[420162228,1775741440177,-1000.0,0.00014268,2]
[420162229,1775741440186,-1000.0,0.00014268,2]
[420162230,1775741440199,-1000.0,0.00014312,2]
[420162231,1775741440209,-1000.0,0.00014464,2]
[420162232,1775741440221,-163.0743128,0.00014485,2]
[420162233,1775741440233,-1000.0,0.00014511,2]
[420162234,1775741440244,-720.0,0.00014585,2]
[420162235,1775741440254,-1000.0,0.00014585,2]
[420162236,1775741440263,-162.380719,0.00014608,2]
[420162237,1775741440273,-151.0,0.00014608,2]
[420162238,1775741440283,-496.47127165,0.00014608,2]
[420162239,1775741440293,-156.82605751,0.00014608,2]
[420162241,1775741440303,-1957.856,0.00014608,2]
[420162243,1775741440312,-537.6845,0.00014608,2]
[420162245,1775741440322,-269.80877999,0.00014608,2]
[420162247,1775741440331,-2150.738,0.00014608,2]
[420162249,1775741440340,-537.6845,0.00014608,2]
[420162250,1775741440349,-919.2880038,0.00014646,2]
[420162252,1775741440359,-2030.296672,0.00014663,2]
[420162254,1775741440368,-557.5788265,0.00014663,2]
[420162255,1775741440378,-1000.0,0.000147,2]
[420162256,1775741440388,-88582.567876,0.000147,2]
[420162258,1775741440398,-2105.41764886,0.00014718,2]
[420162260,1775741440407,-578.20924308,0.00014718,2]
[420162261,1775741440417,-2183.31810187,0.00014773,2]
[420162263,1775741440427,-599.60298507,0.00014773,2]
[420162264,1775741440437,-166.0,0.00014783,2]
[420162265,1775741440447,-1000.0,0.000148,2]
[420162266,1775741440457,-842.38833765,0.00014816,2]
[420162267,1775741440467,-1500.0,0.00014816,2]
[420162268,1775741440477,-1821.678591,0.00014823,2]
[420162269,1775741440488,-1460.33024589,0.00014828,2]
[420162270,1775741440498,-621.78829552,0.00014828,2]
[420162271,1775741440508,-1500.0,0.0001486,2]
[420162272,1775741440518,-644.79446246,0.00014883,2]
[420162273,1775741440529,-1000.0,0.000149,2]
[420162274,1775741440539,-668.65185757,0.00014938,2]
[420162275,1775741440549,-688.32277019,0.00014965,2]
[420162276,1775741440559,-693.3919763,0.00014993,2]
[420162277,1775741440569,-1000.0,0.00015,2]
[420162278,1775741440579,-1531.3571458,0.00015012,2]
[420162279,1775741440588,-205.1208795,0.00015014,2]
[420162280,1775741440598,-594.08743691,0.00015039,14]
[420162281,1775741440608,-719.04747942,0.00015048,2]
[420162282,1775741440618,-3747.21343736,0.00015066,2]
[420162283,1775741440628,-215.19646,0.00015068,2]
[420162285,1775741440638,-1000.0,0.000151,2]
[420162286,1775741440648,-745.65223616,0.00015103,2]
[420162288,1775741440658,-1828.93302724,0.00015125,2]
[420162291,1775741440668,-557.5788265,0.00015156,2]
[420162292,1775741440678,-2230.315306,0.00015156,2]
[420162294,1775741440687,-773.2413689,0.00015158,2]
[420162296,1775741440697,-801.85129955,0.00015213,2]
[420162298,1775741440707,-194.99977779,0.00015215,14]
[420162300,1775741440717,-326.71794764,0.00015256,2]
[420162302,1775741440727,-831.51979763,0.00015268,2]
[420162305,1775741440737,-699.89599291,0.00015306,2]
[420162307,1775741440748,-2796.78438766,0.00015306,2]
[420162309,1775741440757,-182.76103762,0.00015306,2]
[420162311,1775741440767,-862.28603014,0.00015323,2]
[420162312,1775741440778,-183.6137343,0.00015364,2]
[420162314,1775741440787,-894.19061326,0.00015378,2]
[420162316,1775741440797,-1000.0,0.000154,2]
[420162318,1775741440807,-2000.0,0.00015408,2]
[420162320,1775741440816,-1000.0,0.000157,2]
[420162322,1775741440826,-598.10356958,0.00015704,2]
[420162324,1775741440836,-2312.83697232,0.00015704,2]
[420162326,1775741440846,-1000.0,0.000159,2]
[420162328,1775741440855,-193.3185739,0.00015977,2]
[420162330,1775741440865,-1000.0,0.00016,2]
[420162332,1775741440875,-864.0,0.00016043,2]
[420162334,1775741440885,-594.08743691,0.00016047,14]
[420162336,1775741440895,-1000.0,0.000161,2]
[420162339,1775741440905,-151.5567,0.00016137,2]
[420162341,1775741440914,-2398.4119403,0.00016252,2]
[420162343,1775741440924,-165.626586,0.00016427,2]
[420162345,1775741440934,-300.0,0.00016438,2]
[420162347,1775741440943,-200.0,0.00016438,3]
[420162349,1775741440952,-200.0,0.00016438,3]
[420162351,1775741440962,-200.0,0.00016438,3]
[420162352,1775741440971,-200.0,0.00016438,3]
[420162354,1775741440981,-200.0,0.00016438,3]
[420162356,1775741440991,-200.0,0.00016438,3]
[420162358,1775741441001,-1885.712677,0.000168,2]
[420162360,1775741441010,-194.99977779,0.00016953,30]
[420162362,1775741441020,-594.08743691,0.00017055,14]
[420162364,1775741441030,-181.56552647,0.00017058,11]
[420162366,1775741441040,-2042.70442004,0.00017125,2]
[420162368,1775741441049,-9097.0,0.00017386,2]
[420162370,1775741441060,-1592.0,0.00017386,2]
[420162372,1775741441069,-440.0,0.00017507,2]
[420162374,1775741441078,-209.503,0.00017507,2]
[420162376,1775741441089,-1000.0,0.00017648,2]
[420162378,1775741441098,-330.0,0.00017964,2]
[420162380,1775741441109,-1000.0,0.00018,2]
[420162382,1775741441120,-594.08743691,0.00018062,30]
[420162384,1775741441130,-215.19646,0.00018493,2]
[420162387,1775741441139,-194.99977779,0.00018692,60]
[420162389,1775741441148,-181.56552647,0.0001886,16]
[420162391,1775741441161,-1000.0,0.00019,2]
[420162393,1775741441171,-168.0,0.00019016,2]
[420162395,1775741441181,-594.08743691,0.0001907,30]
[420162397,1775741441190,-2256.47581283,0.00019125,2]
[420162399,1775741441200,-325.1876519,0.00019159,2]
[420162400,1775741441210,-200.0,0.00019178,2]
[420162402,1775741441220,-200.0,0.00019178,2]
[420162404,1775741441230,-200.0,0.00019178,2]
[420162407,1775741441240,-1243.0,0.00019178,2]
[420162408,1775741441250,-168.0,0.00019198,2]
[420162410,1775741441259,-168.0,0.00019385,2]
[420162412,1775741441269,-1000.0,0.00019412,2]
[420162414,1775741441282,-244.0,0.00019412,2]
[420162416,1775741441292,-168.0,0.00019434,2]
[420162419,1775741441303,-1243.0,0.00019452,2]
[420162421,1775741441312,-168.0,0.00019511,2]
[420162423,1775741441322,-168.0,0.00019567,2]
[420162425,1775741441331,-363.0,0.00019632,2]
[420162427,1775741441341,-280.041,0.00019633,2]
[420162428,1775741441350,-168.0,0.00019648,2]
[420162430,1775741441360,-1243.0,0.00019726,2]
[420162432,1775741441370,-168.0,0.00019726,2]
[420162435,1775741441380,-168.0,0.00019754,2]
[420162437,1775741441390,-168.0,0.00019812,2]
[420162438,1775741441399,-168.0,0.00019856,2]
[420162440,1775741441409,-1243.0,0.0002,2]
[420162442,1775741441419,-17171.0,0.0002,2]
[420162445,1775741441429,-1000.0,0.0002,2]
[420162447,1775741441438,-306.77673393,0.0002,2]
[420162449,1775741441448,-1000.0,0.0002,2]
[420162451,1775741441458,-1300.0,0.0002,2]
[420162453,1775741441467,-1570.0,0.0002,2]
[420162455,1775741441477,-664.65,0.0002,2]
[420162457,1775741441487,-540.0,0.0002,2]
[420162459,1775741441497,-1200.0,0.0002,2]
[420162461,1775741441506,-963.55,0.0002,2]
[420162463,1775741441516,-900.0,0.0002,2]
[420162465,1775741441525,-1100.0,0.0002,2]
[420162467,1775741441535,-800.0,0.0002,2]
[420162469,1775741441544,-1770.0,0.0002,2]
[420162471,1775741441553,-2350.0,0.0002,2]
[420162473,1775741441563,-800.0,0.0002,2]
[420162475,1775741441573,-671.5,0.0002,2]
[420162476,1775741441582,-740.0,0.0002,2]
[420162479,1775741441592,-900.0,0.0002,2]
[420162480,1775741441601,-800.0,0.0002,2]
[420162483,1775741441612,-700.0,0.0002,2]
[420162484,1775741441621,-1500.0,0.0002,2]
[420162487,1775741441631,-483.55,0.0002,2]
[420162489,1775741441640,-1020.0,0.0002,2]
[420162491,1775741441650,-1200.0,0.0002,2]
[420162493,1775741441660,-780.0,0.0002,2]
[420162495,1775741441670,-1551.74,0.0002,2]
[420162497,1775741441679,-2000.0,0.0002,2]
[420162499,1775741441689,-594.08743691,0.00020078,60]
[420162501,1775741441698,-168.0,0.00020272,2]
[420162503,1775741441708,-1243.0,0.00020274,2]
[420162504,1775741441717,-168.0,0.00020306,2]
[420162506,1775741441727,-184.96480796,0.000204,2]
[420162508,1775741441736,-194.99977779,0.0002043,60]
[420162510,1775741441747,-184.0,0.00020507,2]
[420162512,1775741441756,-168.0,0.00020537,2]
[420162514,1775741441766,-1243.0,0.00020548,2]
[420162516,1775741441776,-319.768154,0.00020548,2]
[420162518,1775741441787,-184.96480796,0.000206,2]
[420162520,1775741441797,-168.0,0.00020607,2]
[420162522,1775741441807,-181.56552647,0.00020662,20]
[420162524,1775741441817,-3190.00000001,0.0002078,3]
[420162526,1775741441829,-168.0,0.00020789,2]
[420162528,1775741441840,-184.96480796,0.000208,2]
[420162531,1775741441850,-1243.0,0.00020822,2]
[420162533,1775741441859,-2836.45315244,0.000209,2]
[420162563,1775741442080,-1200.0,0.00020964,2]
[420162565,1775741442091,-184.96480796,0.00021,2]
[420162567,1775741442101,-1445.13,0.00021063,2]
[420162569,1775741442111,-1312.6,0.00021066,2]
[420162571,1775741442121,-594.08743691,0.00021086,60]
[420162573,1775741442131,-1243.0,0.00021096,2]
[420162575,1775741442141,-2470.24720563,0.00021125,2]
[420162577,1775741442151,-800.0,0.00021193,2]
[420162579,1775741442160,-160.0,0.00021199,3]
[420162581,1775741442169,-184.96480796,0.000212,2]
[420162583,1775741442183,-1000.0,0.00021354,10]
[420162585,1775741442192,-492.0,0.00021354,10]
[420162588,1775741442202,-1243.0,0.0002137,2]
[420162589,1775741442212,-800.0,0.00021437,2]
[420162591,1775741442222,-800.0,0.00021438,2]
[420162593,1775741442231,-399.0,0.00021455,2]
[420162595,1775741442241,-1558.49104872,0.0002148,2]
[420162597,1775741442250,-2000.0,0.00021487,2]
[420162600,1775741442259,-800.0,0.00021542,2]
[420162602,1775741442271,-2000.0,0.00021558,2]
[420162604,1775741442280,-800.0,0.0002158,2]
[420162606,1775741442290,-1820.86,0.00021596,2]
[420162608,1775741442300,-1243.0,0.00021644,2]
[420162610,1775741442309,-800.0,0.00021669,2]
[420162612,1775741442319,-2300.0,0.00021682,2]
[420162614,1775741442328,-600.0,0.000219,2]
[420162616,1775741442338,-8389.08937936,0.000219,2]
[420162618,1775741442348,-1243.0,0.00021918,5]
[420162620,1775741442358,-215.19646,0.00021918,2]
[420162622,1775741442367,-151.0,0.00021918,2]
[420162624,1775741442376,-151.0,0.00021918,2]
[420162626,1775741442386,-151.0,0.00021918,2]
[420162628,1775741442395,-151.0,0.00021918,2]
[420162629,1775741442404,-151.0,0.00021918,2]
[420162631,1775741442414,-151.0,0.00021918,2]
[420162633,1775741442424,-151.0,0.00021918,2]
[420162635,1775741442433,-151.0,0.00021918,2]
[420162637,1775741442443,-151.0,0.00021918,2]
[420162639,1775741442453,-151.0,0.00021918,2]
[420162641,1775741442463,-151.0,0.00021918,2]
[420162643,1775741442473,-151.0,0.00021918,2]
[420162645,1775741442482,-151.0,0.00021918,2]
[420162647,1775741442491,-151.0,0.00021918,2]
[420162649,1775741442501,-151.0,0.00021918,2]
[420162652,1775741442511,-151.0,0.00021918,2]
[420162653,1775741442520,-239.024242,0.00021918,2]
[420162655,1775741442531,-151.0,0.00021918,2]
[420162657,1775741442540,-151.0,0.00021918,2]
[420162660,1775741442549,-151.0,0.00021918,2]
[420162662,1775741442558,-195.577682,0.00021918,2]
[420162664,1775741442567,-189.911756,0.00021918,2]
[420162665,1775741442577,-189.911756,0.00021918,2]
[420162667,1775741442586,-189.911756,0.00021918,2]
[420162669,1775741442594,-189.911756,0.00021918,2]
[420162671,1775741442604,-189.911756,0.00021918,2]
[420162673,1775741442613,-189.911756,0.00021918,2]
[420162675,1775741442622,-189.911756,0.00021918,2]
[420162677,1775741442630,-189.911756,0.00021918,2]
[420162679,1775741442640,-189.911756,0.00021918,2]
[420162680,1775741442648,-189.911756,0.00021918,2]
[420162682,1775741442657,-189.911756,0.00021918,2]
[420162684,1775741442666,-189.911756,0.00021918,2]
[420162686,1775741442675,-189.911756,0.00021918,2]
[420162688,1775741442684,-189.911756,0.00021918,2]
[420162690,1775741442693,-189.911756,0.00021918,2]
[420162692,1775741442703,-189.911756,0.00021918,2]
[420162694,1775741442712,-189.911756,0.00021918,2]
[420162696,1775741442721,-189.911756,0.00021918,2]
[420162698,1775741442729,-189.911756,0.00021918,2]
[420162699,1775741442739,-189.911762,0.00021918,2]
[420162701,1775741442749,-151.0,0.00021918,2]
[420162703,1775741442758,-2489.754322,0.00021918,2]
[420162705,1775741442768,-2489.754322,0.00021918,2]
[420162707,1775741442778,-2489.754322,0.00021918,2]
[420162709,1775741442787,-2489.754322,0.00021918,2]
[420162711,1775741442797,-2489.754322,0.00021918,2]
[420162713,1775741442806,-2489.754322,0.00021918,2]
[420162715,1775741442816,-2489.754322,0.00021918,2]
[420162717,1775741442825,-2489.754322,0.00021918,2]
[420162719,1775741442834,-2489.754322,0.00021918,2]
[420162721,1775741442844,-2489.754322,0.00021918,2]
[420162723,1775741442853,-2489.754322,0.00021918,2]
[420162725,1775741442863,-2489.754322,0.00021918,2]
[420162727,1775741442872,-2489.754322,0.00021918,2]
[420162729,1775741442882,-2489.754322,0.00021918,2]
[420162731,1775741442891,-2489.754322,0.00021918,2]
[420162733,1775741442900,-2489.754322,0.00021918,2]
[420162735,1775741442910,-2489.754322,0.00021918,2]
[420162737,1775741442919,-2489.754322,0.00021918,2]
[420162739,1775741442929,-2489.754322,0.00021918,2]
[420162741,1775741442940,-2489.754313,0.00021918,2]
[420162743,1775741442949,-202.240024,0.00021918,2]
[420162744,1775741442958,-202.240024,0.00021918,2]
[420162746,1775741442968,-202.240024,0.00021918,2]
[420162749,1775741442977,-279.344462,0.00021918,2]